{"text_format":"1","workbook":"xlsx","n_sheets":3,"sheets":["Intro","Questions","Data"],"not_rendered":{"charts":0,"images":9,"macros":1,"external_links":0,"defined_names":3,"comments":0,"pivot_tables":0},"unopened":[],"bounds":{"document_bytes":16777216,"sheet_cells":100000,"rows_first":2000,"rows_last":500,"rows_between":2000,"halvings":0,"cell_chars":16384,"cell_head_chars":4096},"cells_cut":0,"cells_raw":0,"read":"whole","date_system":"1900"}

{"sheet":"Intro","index":0,"n_rows":38,"n_cols":20,"rows_kept":38,"cut":false,"hidden":false,"merged":[[1,0,1,13],[3,0,3,13]]}
[]
["Des guerres, des inventions, des constructions, des hommes ont marqué l'histoire de l'humanité."]
[]
["Ce quiz de dates pour situer une centaine d'événements importants."]
[]
[null,null,null,null,null,null,null,null,null,null,null,null,0]
[null,null,null,null,null,null,null,null,null,null,null,null,0]
[null,null,null,null,null,null,null,null,null,null,null,null,null,null,null,"          Domaines des questions du quiz:"]
[]
[]
[null,null,null,null,null,null,null,null,null,null,null,null,null,null,null,null,"La Préhistoire",null,{"$f":"Data!K3","v":3},"questions"]
[]
[]
[]
[null,null,null,null,null,null,null,null,null,null,null,null,null,null,null,null,"L'Antiquité",null,{"$f":"Data!L3","v":17},"questions"]
[]
[]
[]
[null,null,null,null,null,null,null,null,null,null,null,null,null,null,null,null,"L'histoire de France",null,{"$f":"Data!M3","v":23},"questions"]
[]
[]
[]
[null,null,null,null,null,null,null,null,null,null,null,null,null,null,null,null,"L'histoire suisse",null,{"$f":"Data!N3","v":16},"questions"]
[]
[]
[]
[null,null,null,null,null,null,null,null,null,null,null,null,null,null,null,null,"Evénements mondiaux",null,{"$f":"Data!O3","v":34},"questions"]
[]
[]
[]
[null,null,null,null,null,null,null,null,null,null,null,null,null,null,null,null,"Inventions et culture",null,{"$f":"Data!P3","v":27},"questions"]
[]
[]
[]
[]
[]
[]
[null,"© Yvan Péguiron 2024 - www.infodidac.ch"]

{"sheet":"Questions","index":1,"n_rows":28,"n_cols":19,"rows_kept":28,"cut":false,"hidden":false,"merged":[[27,1,28,2],[27,3,28,3],[27,4,28,4],[24,1,24,2],[2,9,3,9],[20,5,20,6],[10,5,10,6],[12,5,12,6],[14,5,14,6],[16,5,16,6],[18,5,18,6],[13,8,15,8],[6,9,8,9],[0,8,1,8],[4,1,8,8],[11,1,11,4],[2,7,2,8],[0,7,1,7]]}
[null,null,null,"Question no :",{"$f":"IF(O2>P4,P4&\" / \"&P4,O2&\" / \"&P4)","v":"0 / 120"},"Nb. de réponses :",{"$f":"O3","v":0},"% de réponses justes",{"$f":"IF(O3=0,\"\",M3/O3)","v":""}]
[null,null,null,null,null,"Nb. de justes :",{"$f":"M3","v":0},null,null,null,null,"no tirage",0,"Nb quest",0,{"$f":"Data!C1","v":120}]
[null,"            Situe dans le temps et donne  une date pour cet événement de l'histoire ",null,null,null,null,null,{"$f":"VLOOKUP(M2,Data1,3)","v":""},null,null,null,"nb juste",0,"nb réponses",0,"Nb Data"]
[null,null,null,null,null,null,null,null,null,null,null,"no propositions",null,{"$f":"Data!Q18","v":120},"nb Select",{"$f":"Data!R18","v":120},"Note sir 10:",{"$f":"IF(O3=0,1,ROUND((M3/O3)*20,0)/2)","v":1},{"$f":"INT(R4)","v":1}]
[null,{"$f":"VLOOKUP(M2,Data1,6)","v":"Clique sur le bouton ' Question' pour démarrer la partie !"},null,null,null,null,null,null,null,null,null,1,0,{"$f":"VLOOKUP(M5,Data1,4)","v":""},null,{"$f":"\"Partie terminée… Ta culture générale laisse à désirer !!!\"","v":"Partie terminée… Ta culture générale laisse à désirer !!!"}]
[null,null,null,null,null,null,null,null,null,{"$f":"IF(O2-1=P4,\"Note sur 10\",\"\")","v":""},null,2,0,"",null,{"$f":"\"Partie terminée… Tu peux faire mieux !\"","v":"Partie terminée… Tu peux faire mieux !"}]
[null,null,null,null,null,null,null,null,null,{"$f":"IF(O2-1=P4,R4,\"\")","v":""},null,3,0,"",null,{"$f":"\"Partie terminée… C'est bien !\"","v":"Partie terminée… C'est bien !"}]
[null,null,null,null,null,null,null,null,null,null,null,4,0,"",null,{"$f":"\"Partie terminée… Félicitations !\"","v":"Partie terminée… Félicitations !"}]
[null,null,null,null,null,null,null,null,null,null,null,5,0,"",null,{"$f":"\"Partie terminée… Magnifique résultat !\"","v":"Partie terminée… Magnifique résultat !"},null,"Valeur :",{"$f":"VLOOKUP(S4,R12:T22,2)","v":1}]
[null,null,null,null,null,null,null,null,null,null,null,6,0,"",null,{"$f":"\"Partie terminée à la perfection !\"","v":"Partie terminée à la perfection !"}]
[null,null,null,null,null,{"$f":"VLOOKUP(1,$L$5:$N$10,3)","v":""},null,{"$f":" IF($M$14=1,\"×\",\"\")","v":""},null,null,null,null,null,null,null,{"$f":"VLOOKUP(S9,L5:P11,5)","v":"Partie terminée… Ta culture générale laisse à désirer !!!"}]
[null,"Clique sur une date proposée !",null,null,null,null,null,null,null,null,null,"Bonne rép :",0,null,"No icone",{"$f":"VLOOKUP(M2,Data1,5)","v":0},null,0,1]
[null,null,null,null,null,{"$f":"VLOOKUP(2,$L$5:$N$10,3)","v":""},null,{"$f":" IF($M$14=2,\"×\",\"\")","v":""},null,null,null,null,null,null,null,null,null,1,1]
[null,null,null,null,null,null,null,null,{"$f":"IF(M14=0,\"\",IF(M14=M12,\"J\",\"û\"))","v":""},null,null,"Réponses:",0,null,null,null,null,2,1]
[null,null,null,null,null,{"$f":"VLOOKUP(3,$L$5:$N$10,3)","v":""},null,{"$f":" IF($M$14=3,\"×\",\"\")","v":""},null,null,null,null,null,null,null,null,null,3,2]
[null,null,null,null,null,null,null,null,null,null,null,"Sélection : ",null,"nb ques",null,"contròle",null,4,2]
[null,null,null,null,null,{"$f":"VLOOKUP(4,$L$5:$N$10,3)","v":""},null,{"$f":" IF($M$14=4,\"×\",\"\")","v":""},{"$f":"IF(M2=0,\"\",IF(M14=M12,\"Bravo !\",\"\"))","v":""},null,17,"Antiquité",true,{"$f":"IF(M17=FALSE,0,Data!K3+Data!L3)","v":20},null,{"$f":"IF(M17=FALSE,0,1)","v":1},null,5,3]
[null,null,null,null,null,null,null,null,null,null,18,"France",true,{"$f":"IF(M18=FALSE,0,Data!M3)","v":23},null,{"$f":"IF(M18=FALSE,0,1)","v":1},null,6,3]
[null,null,null,null,null,{"$f":"VLOOKUP(5,$L$5:$N$10,3)","v":""},null,{"$f":" IF($M$14=5,\"×\",\"\")","v":""},null,null,19,"Suisse",true,{"$f":"IF(M19=FALSE,0,Data!N3)","v":16},null,1,null,7,4]
[null,null,null,null,null,null,null,null,null,null,20,"Monde",true,{"$f":"IF(M20=FALSE,0,Data!O3)","v":34},null,1,null,8,4]
[null,null,null,null,null,{"$f":"VLOOKUP(6,$L$5:$N$10,3)","v":""},null,{"$f":" IF($M$14=6,\"×\",\"\")","v":""},null,null,21,"Inventeurs",true,{"$f":"IF(M21=FALSE,0,Data!P3)","v":27},null,1,null,9,5]
[null,null,null,null,null,null,null,null,null,null,22,"Avant 1500",false,null,{"$f":"Data!R3","v":56},0,null,10,6]
[null,{"$f":"IF(O2=0,\"Choisis les champs souhaités pour les questions et le nombre !\",\"\")","v":"Choisis les champs souhaités pour les questions et le nombre !"},null,null,null,null,null,null,null,null,23,"Après 1500",false,null,{"$f":"Data!S3","v":64},0]
[null,null,null,null,null,null,null,null,null,null,null,null,"Total",{"$f":"SUM(N17:N23)","v":120},null,{"$f":"SUM(P17:P23)","v":5}]
[]
[null,{"$f":"IF(H2=0,\"ou :\",\"\")","v":"ou :"}]
[]
[null,"Maximum de questions souhaitées :",null,120,{"$f":"\"/ \"&N4","v":"/ 120"}]

{"sheet":"Data","index":2,"n_rows":123,"n_cols":19,"rows_kept":123,"cut":false,"hidden":true,"merged":[[17,10,17,11]]}
["Data jusqu'à A122",null,{"$f":"127-COUNTBLANK(A3:A130)","v":120},"nb questions",null,null,null,null,null,null,null,null,null,null,null,null,null,"avant 1500","après 1500"]
[0,null,{"$f":"\"\"","v":""},{"$f":"\"\"","v":""},null,{"$f":"IF(Questions!O2=0,\"Clique sur le bouton ' Question' pour démarrer la partie !\",Questions!P11)","v":"Clique sur le bouton ' Question' pour démarrer la partie !"},null,null,null,null,1,2,3,4,5,6]
[1,-19000,{"$f":"VLOOKUP(E3,$K$4:$L$9,2)","v":"de la Préhistoire"},"Vers 19000 avant J.-C.",1,"Des Magdaléniens dessinent des figures d'animaux dans leurs grottes comme celles retrouvées en 1940 à Lascaux en Dordogne.",null,null,null,"Nombre :",{"$f":"COUNTIF($E$3:$E$125,\"=1\")","v":3},{"$f":"COUNTIF($E$3:$E$125,\"=2\")","v":17},{"$f":"COUNTIF($E$3:$E$125,\"=3\")","v":23},{"$f":"COUNTIF($E$3:$E$125,\"=4\")","v":16},{"$f":"COUNTIF($E$3:$E$125,\"=5\")","v":34},{"$f":"COUNTIF($E$3:$E$125,\"=6\")","v":27},{"$f":"SUM(K3:P3)","v":120},{"$f":"COUNTIF($B$3:$B$125,\"<=1500\")","v":56},{"$f":"COUNTIF($B$3:$B$125,\">1500\")","v":64}]
[2,-10500,{"$f":"VLOOKUP(E4,$K$4:$L$9,2)","v":"des inventions"},"Vers 10500 avant J.-C.",6,"Au Japon, première et plus ancienne époque de fabrication de la céramique  connue dans le monde",null,null,null,null,1,"de la Préhistoire"]
[3,-8000,{"$f":"VLOOKUP(E5,$K$4:$L$9,2)","v":"de la Préhistoire"},"Vers 8000 avant J.-C.",1,"Débute le néolithique, les hommes cultivent des plantes et domestiquent des animaux ",null,null,null,null,2,"antique"]
[4,-5000,null,"Vers 5000 avant J.-C.",1,"Début de la culture du maïs dans la vallée de Tehuacán (Mexique actuel).",null,null,null,null,3,"de France"]
[5,-3500,{"$f":"VLOOKUP(E7,$K$4:$L$9,2)","v":"des inventions"},"Vers 3500 avant J.-C.",6,"La roue de transport  est attribuée à Sumer en Basse Mésopotamie.",null,null,null,null,4,"Suisse"]
[6,-3000,"des inventions","Vers 3000 avant J.-C.",6,"Les hommes inventent l’écriture, c’est la fin de la période néolithique.",null,null,null,null,5,"mondiale"]
[7,-1590,"antique","Vers 1590 avant J.-C.",2,"Les pharaons momifiés sont ensevelis dans la Vallée des Rois située sur la rive gauche du Nil face à Thèbes.",null,null,null,null,6,"des inventions"]
[8,-1200,"antique","Vers 1200 avant J.-C.",2,"Les Hébreux s’installent dans le pays de Canaan, entre le fleuve Jourdain et la mer Méditerranée, après des années d’exode."]
[9,-1200,"antique","Vers 1300 avant J.-C.",2,"Arrivée du fer en Grèce. Le monde grec entre dans le premier âge du fer.",null,null,null,"<=1500",{"$f":"COUNTIFS($E$3:$E$125,\"=1\", $B$3:$B$125,\"<=1500\")","v":3},{"$f":"COUNTIFS($E$3:$E$125,\"=2\", $B$3:$B$125,\"<=1500\")","v":17},{"$f":"COUNTIFS($E$3:$E$125,\"=3\", $B$3:$B$125,\"<=1500\")","v":7},{"$f":"COUNTIFS($E$3:$E$125,\"=4\", $B$3:$B$125,\"<=1500\")","v":5},{"$f":"COUNTIFS($E$3:$E$125,\"=5\", $B$3:$B$125,\"<=1500\")","v":13},{"$f":"COUNTIFS($E$3:$E$125,\"=6\", $B$3:$B$125,\"<=1500\")","v":11},{"$f":"SUM(K11:P11)","v":56}]
[10,-776,"antique","776 avant J.-C.",2,"Premiers Jeux Olympiques à Olympie.",null,null,null,">1500",{"$f":"COUNTIFS($E$3:$E$125,\"=1\", $B$3:$B$125,\">1500\")","v":0},{"$f":"COUNTIFS($E$3:$E$125,\"=2\", $B$3:$B$125,\">1500\")","v":0},{"$f":"COUNTIFS($E$3:$E$125,\"=3\", $B$3:$B$125,\">1500\")","v":16},{"$f":"COUNTIFS($E$3:$E$125,\"=4\", $B$3:$B$125,\">1500\")","v":11},{"$f":"COUNTIFS($E$3:$E$125,\"=5\", $B$3:$B$125,\">1500\")","v":21},{"$f":"COUNTIFS($E$3:$E$125,\"=6\", $B$3:$B$125,\">1500\")","v":16},{"$f":"SUM(K12:P12)","v":64}]
[11,-753,"antique","753 avant J.-C.",2,"Fondation de Rome."]
[12,-348,"antique","348 avant J.-C.",2,"Le Parthénon construit sur l'Acropole d'Athènes est consacré à la déesse Athéna Parthénos en cette année.",null,null,null,"choix",{"$f":"IF(Questions!$M$17=TRUE,Data!K11,0)","v":3},{"$f":"IF(Questions!$M$17=TRUE,Data!L11,0)","v":17},{"$f":"IF(Questions!$M$18=TRUE,Data!M11,0)","v":7},{"$f":"IF(Questions!$M$19=TRUE,Data!N11,0)","v":5},{"$f":"IF(Questions!$M$20=TRUE,Data!O11,0)","v":13},{"$f":"IF(Questions!$M$21=TRUE,Data!P11,0)","v":11},{"$f":"IF(Questions!$M$22=TRUE,Q11,0)","v":0}]
[13,-334,"antique","334 avant J.-C.",2,"Début de l’expédition d’Alexandre le Grand.",null,null,null,null,{"$f":"IF(Questions!$M$17=TRUE,Data!K12,0)","v":0},{"$f":"IF(Questions!$M$18=TRUE,Data!L12,0)","v":0},{"$f":"IF(Questions!$M$18=TRUE,Data!M12,0)","v":16},{"$f":"IF(Questions!$M$19=TRUE,Data!N12,0)","v":11},{"$f":"IF(Questions!$M$20=TRUE,Data!O12,0)","v":21},{"$f":"IF(Questions!$M$21=TRUE,Data!P12,0)","v":16},{"$f":"IF(Questions!$M$23=TRUE,Data!Q12,0)","v":0}]
[14,-280,"antique","Vers 280 avant J.-C.",2,"Construction du Phare d'Alexandrie"]
[15,-168,"antique","168 avant J.-C.",2,"Début de la conquête romaine.",null,null,null,"Definitif",{"$f":"SUM(K14:K15)","v":3},{"$f":"SUM(L14:L15)","v":17},23,16,34,27,0,{"$f":"SUM(M17:Q17)+K18","v":120}]
[16,-52,"antique","52 avant J.-C.",2,"Guerre des Gaules et victoire romaine de César à Alésia.",null,null,null,null,{"$f":"SUM(K17:L17)","v":20},null,null,null,null,"nb selec",{"$f":"IF(R17=0,1,R17)","v":120},{"$f":"IF(Q18<=Q19,Q18,Q19)","v":120}]
[17,64,"antique",64,2,"Incendie de Rome, début des persécutions contre les chrétiens.",null,null,null,null,null,null,null,null,null,"maximum",{"$f":"Questions!D28","v":120}]
[18,79,"antique",79,2,"Éruption du Vésuve qui a enseveli sous les éjectas volcaniques Pompéi et Herculanum."]
[19,105,"des inventions",105,6,"L’invention du papier est attribuée à Ts’ai Lun, un dignitaire de la cour impériale chinoise."]
[20,313,"antique",313,2,"Édit de Constantin (ou Édit de Milan) accorde la liberté de culte aux chrétiens et ordonne que leur soient restitués  biens et bâtiments  confisqués durant la Grande persécution."]
[21,395,"antique",395,2,"Partage de l’Empire, Empire romain d’occident et Empire romain d’Orient."]
[22,410,"antique",410,2,"Prise de Rome par les Goths."]
[23,476,"antique",476,2,"Chute de l’Empire romain d’occident et fin de l’Antiquité."]
[24,490,"antique","490 avant J.-C.",2,"A Marathon, 9 000 hoplites athéniens et leurs 1 000 alliés platéens infligent une cuisante défaite aux 40 000 soldats de l’Empire perse."]
[25,496,"de France",496,3,"Baptême de Clovis et début de la dynastie mérovingienne."]
[26,632,"mondiale",632,5,"Mort de Mahomet. L’Islam est présent dans toute l’Arabie."]
[27,751,"de France",751,3,"Pépin le Bref devient roi des Francs : la dynastie carolingienne est fondée."]
[28,800,"de France","800 (25 décembre)",3,"Sacre de l’empereur Charlemagne et Aix-la-Chapelle devient capitale du royaume."]
[29,828,"mondiale",828,5,"Début de la construction à Venise de la Basilique cathédrale Saint-Marc sur l'emplacement de la chapelle privée du palais des Doges."]
[30,888,"de France",888,3,"Pillage de Paris par les Vikings."]
[31,1001,"mondiale","Vers 1001",5,"Découverte possible de l’Amérique par Leif Erikson un proche parent d’Erik le Rouge venu de Norvège pour rejoindre son père au Groenland et dérouté par les vents."]
[32,1099,"mondiale",1099,5,"Prise de Jérusalem par les croisés."]
[33,1173,"mondiale",1173,5,"Début de la construction de la Tour de Pise (campanile de la cathédrale Notre-Dame de l’Assomption de Pise, en Toscane."]
[34,1198,"des inventions",1198,6,"Leonardo Fibonacci, mathématicien italien, introduit les chiffres indo-arabes (de zéro à 9) à Pise en remplacement des chiffres romains et révolutionne ainsi toutes les mathématiques de l'Occident."]
[35,1204,"mondiale",1204,5,"Les croisés s’emparent de Constantinople."]
[36,1291,"Suisse",1291,4,"Signature du Pacte fédéral par les hommes libres d'Uri, Schwytz et Nidwald."]
[37,1303,{"$f":"VLOOKUP(E39,$K$4:$L$9,2)","v":"de France"},"1303 (septembre)",3,"L'attentat d'Anagni est l'événement le plus marquant de la lutte opposant le roi de France Philippe le Bel au pape Boniface VIII."]
[38,1307,"Suisse",1307,4,"Le Serment du Grütli est un mythe fondateur de la Suisse de caractère légendaire. Trois Confédérés Arnold de Melchtal, Walter Fürst et Werner Stauffacher scellent le pacte d'alliance sur la prairie du Grütli. "]
[39,1309,"mondiale",1309,5,"Le pape Clément V décide de quitter Rome dont il redoute des tensions grandissantes l'opposent à l'Empereur. Il s'installe alors en Avignon."]
[40,1315,"Suisse",1315,4,"Bataille de Morgarten au sud de Zurich. Là, quelque 1 500 confédérés suisses repoussèrent les 4 000 à 8 000 soldats du duc Léopold Ier d'Autriche, seigneur de Habsbourg."]
[41,1326,"des inventions",1326,6,"Première utilisation d'armes à feu avec de la poudre."]
[42,1337,"mondiale","1337-1453",5,"Guerre de Cent Ans."]
[43,1347,"mondiale","1347-1350",5,"Pestes Noires."]
[44,1386,"Suisse",1386,4,"Bataille de Sempach, décès de Léopold III de Habsbourg stoppant les prétentions des Habsbourg au sud du Rhin."]
[45,1402,"mondiale",1402,5,"Le conquérant mongol Tamerlan bat le sultan ottoman à la bataille d'Angor après avoir envahi la Syrie et ravagé Alep, Damas et Bagdad."]
[46,1411,"des inventions","Vers 1411",6,"L'arquebuse (canon à main) apparaît dans les armées. Il s'agit d'une arme à feu individuelle de portée  limitée (moins de 50 mètres), assez lourde et encombrante, mais dont on pouvait épauler."]
[47,1429,"de France","1429-1431",3,"Chevauchée de Jeanne d’Arc."]
[48,1450,"des inventions",1450,6,"Invention de l'imprimerie par Johannes Gutenberg"]
[49,1453,"de France","1453 (17 juillet)",3,"Charles VII, roi de France remporte la bataille de Castillon. C’est la fin de la Guerre de Cent Ans."]
[50,1453,"mondiale","1453 (29 mai)",5,"Les Turcs s’emparent de Constantinople. C'est la fin de l’Empire byzantin."]
[51,1455,"des inventions",1455,6,"La Bible est le premier livre imprimé par Gutenberg."]
[52,1476,"Suisse","1476 (22 juin)",4,"Bataille de Morat. Une victoire remportée par les Confédérés suisses et leurs alliés alsaciens sur l'armée bourguignonne du duc Charles le Téméraire."]
[53,1477,"des inventions",1477,6,"Début de la construction de la 'Chapelle Sixtine' une des salles des palais pontificaux du Vatican. "]
[54,1492,"mondiale",1492,5,"Découverte de l’Amérique par Christophe Colomb."]
[55,1498,"mondiale",1498,5,"Vasco de Gama contourne l’Afrique pour atteindre les Indes."]
[56,1500,"des inventions","Vers 1500",6,"Léonard de Vinci invente entre autres le parachute. "]
[57,1515,"Suisse",1515,4,"la Bataille de Marignan opposa François Ier aux mercenaires suisses qui défendaient le duché de Milan."]
[58,1516,null,"1516 (29 novembre)",4,"François Ier, et les XIII Cantons suisses concluent une Paix perpétuelle à Fribourg. En dépit de la défaite de Marignan, les Confédérés acquièrent de nouveaux territoires et renforcent leur réputation militaire."]
[59,1519,{"$f":"VLOOKUP(E61,$K$4:$L$9,2)","v":"mondiale"},1519,5,"Magellan effectue le tour du monde en trois ans."]
[60,1520,"de France","1520-1550",3,"Les rois de France se font bâtir des châteaux en Île-de-France et Val de Loire"]
[61,1529,"Suisse",1529,4,"Première guerre de Kappel. Les catholiques et les protestants déposèrent au dernier moment les armes et se réconcilièrent autour d’une soupe."]
[62,1535,"Suisse",1536,4,"Les Bernois, conquièrent le Pays de Vaud et occupent le château de Chillon qui conserve son rôle de forteresse, d’arsenal et de prison."]
[63,1539,"de France","1539 (août)",3,"Ordonnance de Villers-Cotterêts. François Ier impose l'usage du français dans les actes politiques et juridiques."]
[64,1540,"Suisse",1540,4,"Calvin fonde l’Église réformée à Genève."]
[65,1547,null,"1547 (16 janvier)",5,"Le Prince russe Ivan IV Vassiliévitch dit Ivan le Terrible est sacré tsar de toutes les Russies à Moscou. Après la mort de sa femme Anastasia Romanovna, Ivan IV se lance dans un régime de terreur."]
[66,1572,{"$f":"VLOOKUP(E68,$K$4:$L$9,2)","v":"de France"},"1572 ( 23 - 24 août)",3,"Massacre de la Saint-Barthélemy."]
[67,1589,"de France","1589 ( 2 août)",3,"Assassinat du roi Henri III à Saint-Cloud, sans héritier, c’est la fin de la dynastie des Valois."]
[68,1598,"de France",1598,3,"Édit de Nantes qui tolère la religion protestante."]
[69,1618,"de France","1618-1648",3,"Guerre de Trente Ans qui oppose les catholiques et protestants du Saint Empire."]
[70,1648,"de France","1648-1653",3,"La Fronde. Une période de troubles qui frappent la France alors en guerre contre l’Espagne, pendant la minorité de Louis XIV. Période de révoltes face à la montée de l’autorité monarchique."]
[71,1661,"de France",1661,3,"Début du règne personnel de Louis XIV."]
[72,1666,"mondiale",1666,5,"Le grand incendie de Londres."]
[73,1671,"des inventions",1671,6,"L'Anglais Isaac Newton invente le télescope à deux miroirs qui permet de grossir 40 fois les astres observés."]
[74,1682,"de France",1682,3,"Installation de la cour à Versailles. La France est la première puissance d’Europe."]
[75,1687,"des inventions",1687,6," Denis Papin  donne la première description d’une machine à vapeur qui fonctionne par le jeu alternatif d’un piston dans un cylindre."]
[76,1715,"de France",1715,3,"Mort de Louis XIV."]
[77,1759,"des inventions",1759,6,"Invention du ciment. John Smeaton produit un mortier aussi dur que de la pierre en mélangeant des chaux hydrauliques et des cendres volcaniques."]
[78,1784,"des inventions",1784,6,"James Watt fait breveter une locomotive à vapeur.  Il introduit une unité appelée le cheval-vapeur pour comparer la puissance fournie par les machines à vapeur."]
[79,1787,"mondiale","1787 (17 septembre)",5,"Acceptation  de la Constitution des États-Unis. Selon ses propres termes, c'est la loi suprême des États-Unis d'Amérique."]
[80,1789,"de France",1789,3,"Révolution française. Prise de la Bastille le 14 juillet."]
[81,1789,"de France","1789 (26 août)",3,"La Déclaration des droits de l'homme et du citoyen est acceptée par l’Assemblée constituante comme préambule de la Constitution française."]
[82,1792,"Suisse",1792,4,"La France déclare la guerre à l'Autriche et envahit la Suisse. La Diète fédérale, de son côté, proclame le 13 mai à Frauenfeld sa neutralité dans le conflit."]
[83,1799,"de France",1799,3,"Bonaparte, Premier Consul et début du Consulat."]
[84,1801,null,1801,6,"Mise au point par Joseph Marie Jacquard avec l'aide du menuisier Jean-Antoine Breton du premier métier à tisser, système mécanique programmable avec cartes perforées."]
[85,1803,{"$f":"VLOOKUP(E87,$K$4:$L$9,2)","v":"Suisse"},"1803 (19 février)",4,"Acte de Médiation écrit par Napoléon Bonaparte. Il attribue une nouvelle constitution à la Suisse, après l'échec de celle de la République helvétique. La Suisse est organisée selon une confédération d'États."]
[86,1803,"Suisse",1803,4,"Entrée dans la Confédération Suisse des cantons de St.-Gall, des Grisons, d'Argovie,  de Thurgovie, du Tessin et de Vaud."]
[87,1804,"de France",1804,3,"Sacre de Napoléon et début de l’Empire."]
[88,1805,"mondiale","1805 (21 octobre)",5,"Bataille de Trafalgar opposant les flottes françaises de Napoléon et espagnoles à la flotte britannique commandée par Nelson, au large du Cap de Trafalgar (E). La victoire des Britanniques est totale."]
[89,1807,"mondiale",1807,5,"Naissance du général Giuseppe Garibaldi, considéré, avec Cavour, Victor-Emmanuel II et Mazzini, comme l’un des « pères de la patrie » italienne."]
[90,1815,"mondiale",1814,5,"Début du 'Congrès de Vienne'. Les pays vainqueurs de Napoléon Ier ainsi que les autres États européens se réunissent pour rédiger et signer les conditions de la paix."]
[91,1815,"Suisse",1815,4,"Entrée dans la Confédération Suisse des cantons du Valais de Genève et de Neuchâtel."]
[92,1815,"mondiale","1815 (18 juin)",5,"Bataille de Waterloo en Belgique. Elle a opposé l'armée de Napoléon Ier, à l'armée des Alliés, dirigée par le duc de Wellington. Elle s'est achevée par la défaite décisive de l'armée française."]
[93,1847,"Suisse","1847 (novembre)",4,"Guerre du Sonderbund. Victoire des troupes fédérales sur celles des 7 cantons catholiques."]
[94,1848,"Suisse","1848 (12 septembre)",4,"La Suisse moderne est née avec l'entrée en vigueur de la Constitution fédérale."]
[95,1859,"des inventions",1859,6,"Réalisation du premier moteur à combustion à deux temps par Étienne Lenoir."]
[96,1864,"mondiale","dès 1864",5,"Le Phylloxéra. Ce puceron, de moins de 0,50 mm, originaire des États-Unis, a ravagé pendant des années des millions d’hectares de vignobles, bouleversant la culture traditionnelle de la Vigne européenne."]
[97,1869,"mondiale",1869,5,"Inauguration du canal de Suez."]
[98,1876,"des inventions",1860,6,"Invention du téléphone par Alexander Graham Bell"]
[99,1878,"des inventions",1878,6,"Invention du phonographe par Thomas Edison"]
[100,1879,"des inventions",1879,6,"Thomas Edison dépose un brevet pour une ampoule électrique."]
[101,1885,"des inventions",1885,6,"Pasteur découvre le vaccin contre la rage."]
[102,1903,"des inventions",1903,6,"Premier vol d'un avion motorisé réalisé par les frères Wright"]
[103,1905,"des inventions",1905,6,"Albert Einstein publie la célèbre formule de la relativité :  E = mc2 soulevant ainsi de nouveaux horizons à la physique."]
[104,1912,"mondiale","1912 (14 avri)",5,"Naufrage du Titanic qui devait relier Southampton à New York et qui a  heurté un iceberg. Environ 1500 personnes périssent."]
[105,1914,"mondiale","1914 (1er août)",5,"L’Allemagne déclare la guerre à la Russie. Le général Paul von HINDENBURG est à la tête de l'armée."]
[106,1914,"mondiale","1914 (3 août)",5,"L’Allemagne déclare la guerre à la France et envahit la Belgique et le Luxembourg."]
[107,1914,"mondiale","1914 (28 juin)",5,"L’assassinat de François-Ferdinand, l’archiduc d’Autriche et prince héritier de l’empire austro-hongrois. "]
[108,1916,"de France","1916 (21 fév.-18 déc.)",3,"Verdun. Une bataille qui s'est déroulée en Lorraine en  opposant les armées française et allemande. Elle a fait plus de 305 000 tués et 400 000 blessés. Victoire défensive française et échec de l’offensive allemande."]
[109,1917,"mondiale","1917 (février)",5,"Révolution russe  ayant conduit au renversement spontané du régime tsariste de Russie."]
[110,1924,"mondiale","1924-1953",5,"Staline au pouvoir en U.R.S.S."]
[111,1929,"mondiale",1929,5,"Krach boursier du 24 octobre (jeudi noir)."]
[112,1940,"de France",1940,3,"Appel du Général de Gaulle à Londres le 18 juin  pour la résistance."]
[113,1944,"mondiale",1944,5,"Débarquement de Normandie, nom de code opération Neptunec, est une vaste opération militaire amphibie et aéroportée alliée de la Seconde Guerre mondiale lancée dans la nuit du 5 au 6 juin."]
[114,1945,"mondiale",1945,5,"Capitulation de l'Allemagne en mai."]
[115,1957,"mondiale","1957 (25 mars)",5,"Signature du traité de Rome instituant la Communauté économique européenne entre six pays : Allemagne de l'Ouest, Belgique, France, Italie, Luxembourg et Pays-Bas."]
[116,1958,"des inventions",1958,6,"Jack Kilby crée le premier circuit intégré."]
[117,1960,"des inventions","1960 (16 mai)",6,"Theodore H. Maiman, ingénieur californien, reprit les études d’Einstein et actionna le premier laser dans les laboratoires Hughes Research à Malibu."]
[118,1969,"des inventions",1969,6,"Premiers pas de l'homme sur la lune, le 20 juillet."]
[119,1989,"mondiale",1989,5,"Chute du mur de Berlin le 9 novembre."]
[120,1991,"des inventions",1991,6,"Au CERN, Sir Timothy John Berners-Lee donne naissance au «world-wide web» le 6 août."]
[121,null,null,null,null,"Fin"]